{"text_format":"2","workbook":"xlsx","n_sheets":3,"sheets":["Munka1","Munka2","Munka3"],"not_rendered":{"charts":0,"images":0,"macros":0,"external_links":0,"defined_names":0,"comments":0,"pivot_tables":0},"unopened":[],"bounds":{"document_bytes":16777216,"sheet_cells":100000,"run_cost":"one","rows_first":2000,"rows_last":500,"rows_between":2000,"halvings":0,"cell_chars":16384,"cell_head_chars":4096},"cells_cut":0,"cells_raw":0,"read":"whole","date_system":"1900"}

{"sheet":"Munka1","index":0,"n_rows":33,"n_cols":5,"rows_kept":33,"cut":false,"hidden":false,"merged":[[28,0,28,4],[0,0,0,4],[1,0,1,4],[10,0,10,4],[22,0,22,4],[6,1,6,4],[6,0,7,0]]}
["A Szegedi Tudományegyetem közoktatási intézményei részére a költségvetésben biztosított normatív hozzájárulás és támogatás 1 főre jutó összege"]
["költségvetési év: 2011."]
[]
[]
[]
[]
["Normatív hozzájárulások / normatív kötött felhasználású támogatások jogcímei","Támogatás összege (Ft)"]
[null,"JGYPK Gyakorló Általános Iskolája, Alapfokú Művészetoktatási Intézménye, Napköziotthonos Óvodája","Ságvári Endre Gyakorló Általános Iskola","Ságvári Endre Gyakorló Gimnázium","Vántus István Gyakorló Zeneművészeti Szakközépiskola"]
["Óvodai nevelésben, általános iskolában, középiskolában, szakiskola 9-10. évfolyamán, szakképzés elméleti képzésben, alapfokú művészetoktatásban, a napközi vagy tanulószobai foglalkoztatásban, iskolaotthonos nevelésben, oktatásban részt vevő, valamint kollégiumban, externátusban elhelyezett gyerek után ",{"$f":"240953334+135673334","v":376626668},{"$f":"136300000+69403334","v":205703334},304090000,{"$f":"27886666+14256666","v":42143332}]
["- OKJ/1 évfolyamos szakképzésben, \n- 2,5, ill. 3 éves képz. 2. évf-on,\n- tanműhely vagy költségvetési szervnél",0,0,0,{"$f":"2613334+1568000","v":4181334}]
["Sajátos nevelési igényű gyermekek, tanulók nevelése, oktatása"]
["a.) Fejlesztő felkészítés",22570000,0,0,0]
["b.) Beszédfogyatékos, enyhe értelmi fogyatékos, viselkedés fejlődésének organikus okokra visszavezethető tartós és súlyos rendellenessége",{"$f":"1433600+1075200","v":2508800},{"$f":"477866+358400","v":836266},0,0]
["c.)A viselkedés fejlődésének organikus okokra vissza nem vezethetően tartós és súlyos rendellenessége miatt sajátos nev-i igényű tanulók után",{"$f":"1075200+1149866","v":2225066},{"$f":"179200+209066","v":388266},672000,{"$f":"358400+209066","v":567466}]
["Nappali rendszerű iskolai oktatás nemzetiségi nyelven vagy nemzetiségi és magyar nyelven, két tanítási nyelven, helyi ped. program alapján nyelvi előkészítő évf. biztosít oktatást",0,0,5760000,0]
["Párhuzamos művészeti képzést folytató szakközépiskola 5-12 évfolyamán, ill. Ktv. 29.§-a szerint 13. évfolyamon   ált. műveltség és műv. szakképesítésre felkészítő oktatásban (16.1. nem igényelhető)",0,0,0,22680000]
["Minősített alapfokú művészeti oktatás zeneművészeti ágon",11554266,0,0,11340000]
["Minősített alapfokú művészeti oktatás képző- és iparművészeti, táncművészeti, szín- és bábművészeti ágon, valamint a zeneművészeti ágon csoportos főtanszakos zeneoktatásban",9621334,0,0,0]
["A középszintű érettségi vizsga és szakmai vizsga lebonyolítása A tám. a közokt. tv. 114.§-ában meghatározott ingyenes vizsgák után",0,0,1026000,228000]
["Szakmai, informatikai fejlesztési feladatok támogatása nappali rendszerű oktatásban részt vevő tanulók  után járó támogatás",1543500,1095500,1240750,141750]
["Óvodában, iskolában, kollégiumban szervezett kedvezményes étkeztetés",16796000,11356000,3332000,612000]
["Tanulók ingyenes tankönyvellátása",2892000,2520000,2112000,372000]
[]
["Pedagógus szakvizsga, továbbképzés ",1018500,546000,661500,199500]
["Osztályfőnöki pótlék",1300000,624000,528667,130000]
["Gyógypedagógiai pótlék",65000,433333,0,0]
["SNI tankönyvtámogatás",25034,19027,0,0]
["ÖSSZESEN",{"$f":"SUM(B9:B27)","v":448746168},{"$f":"SUM(C9:C27)","v":223521726},319422917,{"$f":"SUM(E9:E27)","v":82595382}]
[]
["Átlagos létszám 2011. évben (fő)",978.67,626,724,99.33]
["1 főre jutó normatív támogatás és hozzájárulás (Ft/fő)",{"$f":"B28/B30","v":458526.53907854541},{"$f":"C28/C30","v":357063.46006389777},441191.87430939224,831525.03775294474]
["Normatív hozzájárulás a teljes intézményi költségvetési főösszeg %-ában",{"$f":"B28/510835000","v":0.87845619035500699},{"$f":"C28/347821000","v":0.64263436077752634},{"$f":"D28/330099000","v":0.96765793595254757},{"$f":"E28/84922000","v":0.97260288264525097}]
["OM azonosító",29681,29635,29742,200423]

{"sheet":"Munka2","index":1,"n_rows":0,"n_cols":0,"rows_kept":0,"cut":false,"hidden":false,"merged":[]}

{"sheet":"Munka3","index":2,"n_rows":0,"n_cols":0,"rows_kept":0,"cut":false,"hidden":false,"merged":[]}